bitfinex/quotes_BTCUSD_20241130
["timestamp","ask_amount","ask_price","bid_price","bid_amount"]
[1732983695183,0.103472,96644.0,96643.0,1.60584521]
[1732983697207,0.103472,96644.0,96643.0,1.60484521]
[1732983697440,0.103472,96644.0,96643.0,1.60284521]
[1732983697664,0.103472,96644.0,96643.0,1.60384521]
[1732983697860,0.103472,96644.0,96643.0,1.60484521]
[1732983698067,0.103472,96644.0,96643.0,0.10484521]
[1732983698389,0.103472,96644.0,96643.0,0.09686905]
[1732983698653,0.103472,96644.0,96643.0,1.59886905]
[1732983698863,0.103472,96644.0,96643.0,1.59973255]
[1732983701437,0.103472,96644.0,96643.0,0.09973255]
[1732983702172,0.103472,96644.0,96643.0,1.59973255]
[1732983703550,0.103472,96644.0,96643.0,1.59873255]
[1732983703776,0.103472,96644.0,96643.0,1.59973255]
[1732983704198,0.103472,96644.0,96643.0,1.59773255]
[1732983704631,0.103472,96644.0,96643.0,1.59973255]
[1732983705565,0.103472,96644.0,96643.0,0.0038635]
[1732983706685,0.11900119,96644.0,96643.0,0.0028635]
[1732983706938,0.12000119,96644.0,96643.0,0.0028635]
[1732983707400,0.12000119,96644.0,96643.0,0.0008635]
[1732983707915,0.11900119,96644.0,96643.0,0.0018635]
[1732983708134,0.12000119,96644.0,96643.0,0.0018635]
[1732983708999,0.12000119,96644.0,96643.0,0.0008635]
[1732983709214,0.12000119,96644.0,96643.0,0.0018635]
[1732983709439,0.11900119,96644.0,96643.0,0.0018635]
[1732983709656,0.12000119,96644.0,96643.0,0.0018635]
[1732983709872,0.11900119,96644.0,96643.0,0.0018635]
[1732983710319,0.11900119,96644.0,96643.0,0.0028635]
[1732983710553,0.12072879,96644.0,96643.0,0.0028635]
[1732983710788,0.12072879,96644.0,96643.0,0.0018635]
[1732983711032,0.12172879,96644.0,96643.0,0.0018635]
[1732983711257,0.12172879,96644.0,96643.0,0.0008635]
[1732983711502,0.12172879,96644.0,96643.0,0.0018635]
[1732983711955,0.12172879,96644.0,96643.0,0.0008635]
[1732983712410,0.12172879,96644.0,96643.0,0.0018635]
[1732983713095,0.12272879,96644.0,96643.0,0.0018635]
[1732983713528,0.12072879,96644.0,96643.0,0.0018635]
[1732983713743,0.12172879,96644.0,96643.0,0.0018635]
[1732983716015,0.16852879,96644.0,96643.0,0.0018635]
[1732983716250,0.24532879,96644.0,96643.0,0.0018635]
[1732983717117,0.24432879,96644.0,96643.0,0.0018635]
[1732983717326,0.24632879,96644.0,96643.0,0.0018635]
[1732983718013,0.24632879,96644.0,96643.0,0.0008635]
[1732983718225,0.24432879,96644.0,96643.0,0.0008635]
[1732983718922,0.12072879,96644.0,96643.0,0.0008635]
[1732983719595,0.1061996,96644.0,96643.0,0.0008635]
[1732983720058,0.1081996,96644.0,96643.0,0.0008635]
[1732983720301,0.1061996,96644.0,96643.0,0.0008635]
[1732983720748,0.1101996,96644.0,96643.0,0.0008635]
[1732983720972,0.1091996,96644.0,96643.0,0.0008635]
[1732983721389,0.1101996,96644.0,96643.0,0.0008635]
[1732983721820,0.1091996,96644.0,96643.0,0.0008635]
[1732983722252,0.1101996,96644.0,96643.0,0.0008635]
[1732983724339,0.1091996,96644.0,96643.0,0.0008635]
[1732983724582,0.1051996,96644.0,96643.0,0.0018635]
[1732983724776,0.1061996,96644.0,96643.0,0.0018635]
[1732983725043,0.1061996,96644.0,96643.0,0.0008635]
[1732983725515,0.1061996,96644.0,96643.0,0.0018635]
[1732983726208,0.12172879,96644.0,96643.0,0.0018635]
[1732983731631,0.13141296,96644.0,96643.0,0.0018635]
[1732983731858,0.41071296,96644.0,96643.0,0.0018635]
[1732983733683,0.40971296,96644.0,96643.0,0.0008635]
[1732983733920,0.41071296,96644.0,96643.0,0.0008635]
[1732983734349,0.41471296,96644.0,96643.0,0.0008635]
[1732983740421,0.41469918,96644.0,96643.0,0.0008635]
[1732983746004,0.51754439,96644.0,96643.0,0.0008635]
[1732983746262,0.51754439,96644.0,96638.0,0.001]
[1732983746263,0.379977,96639.0,96638.0,5e-07]
[1732983746486,0.4924926,96639.0,96638.0,5e-07]
[1732983746706,0.50802179,96639.0,96638.0,5e-07]
[1732983747361,0.51001954,96639.0,96638.0,5e-07]
[1732983751079,0.51001479,96639.0,96638.0,5e-07]
[1732983752182,0.5422241,96639.0,96638.0,5e-07]
[1732983752675,0.5422241,96639.0,96637.0,7.5e-07]
[1732983752676,0.26900719,96638.0,96637.0,7.5e-07]
[1732983752898,0.5402251,96638.0,96637.0,7.5e-07]
[1732983753377,0.54022357,96638.0,96637.0,7.5e-07]
[1732983754831,0.53756171,96638.0,96637.0,7.5e-07]
[1732983755085,0.5472224,96638.0,96637.0,7.5e-07]
[1732983755565,0.103487,96630.0,96629.0,6.5e-07]
[1732983755804,0.48283221,96630.0,96629.0,6.5e-07]
[1732983756044,0.4924929,96630.0,96629.0,6.5e-07]
[1732983756780,0.4964929,96630.0,96629.0,6.5e-07]
[1732983757027,0.5054929,96630.0,96629.0,6.5e-07]
[1732983757518,0.5014929,96630.0,96629.0,6.5e-07]
[1732983757968,0.5004929,96630.0,96629.0,6.5e-07]
[1732983759032,0.50048883,96630.0,96629.0,6.5e-07]
[1732983760028,0.50948883,96630.0,96629.0,6.5e-07]
[1732983760439,0.49983221,96630.0,96629.0,6.5e-07]
[1732983763435,0.50948833,96630.0,96629.0,6.5e-07]
[1732983765112,0.54166258,96630.0,96629.0,6.5e-07]
[1732983765319,0.55235352,96630.0,96629.0,6.5e-07]
[1732983765546,0.57235352,96630.0,96629.0,6.5e-07]
[1732983765771,0.103493,96624.0,96623.0,1.5e-07]
[1732983766023,0.35633821,96624.0,96623.0,1.5e-07]
[1732983766711,0.40243821,96624.0,96623.0,1.5e-07]
[1732983766954,0.41709433,96624.0,96623.0,1.5e-07]
[1732983767197,0.49969433,96624.0,96623.0,1.5e-07]
[1732983767905,0.50869433,96624.0,96623.0,1.5e-07]
[1732983768114,0.50369433,96624.0,96623.0,1.5e-07]
[1732983769064,0.49469433,96624.0,96623.0,1.5e-07]
[1732983769304,0.50369433,96624.0,96623.0,1.5e-07]
[1732983769526,0.50969433,96624.0,96623.0,1.5e-07]
[1732983774540,0.38099433,96624.0,96623.0,1.5e-07]
[1732983774763,0.37133821,96624.0,96623.0,1.5e-07]
[1732983775539,0.38099433,96624.0,96623.0,1.5e-07]
[1732983775764,0.37133821,96624.0,96623.0,1.5e-07]
[1732983775992,0.38099433,96624.0,96623.0,1.5e-07]
[1732983776424,0.37133821,96624.0,96623.0,1.5e-07]
[1732983777926,0.50629433,96624.0,96623.0,1.5e-07]
[1732983778140,0.52182352,96624.0,96623.0,1.5e-07]
[1732983778359,0.55402114,96624.0,96623.0,1.5e-07]
[1732983786181,0.103516,96603.0,96602.0,0.04795491]
[1732983787455,0.105516,96603.0,96602.0,0.04855262]
[1732983788320,0.103516,96603.0,96602.0,0.04855262]
[1732983788541,0.105516,96603.0,96602.0,0.04855262]
[1732983789000,0.16145031,96605.0,96602.0,0.04855262]
[1732983789224,0.103516,96603.0,96602.0,0.04855262]
[1732983790100,0.105516,96603.0,96602.0,0.04855262]
[1732983794476,0.105516,96603.0,96602.0,0.05028042]
[1732983797841,0.105516,96603.0,96602.0,0.12758042]
[1732983798250,0.105516,96603.0,96602.0,0.25342563]
[1732983798622,0.207026,96606.0,96604.0,0.1234]
[1732983798965,0.10324867,96605.0,96604.0,0.1234]
[1732983800093,0.10324867,96605.0,96604.0,0.1244]
[1732983800734,0.10324867,96605.0,96604.0,0.1234]
[1732983800984,0.10424867,96605.0,96604.0,0.1234]
[1732983801612,0.001,96605.0,96604.0,0.1234]
[1732983801825,0.104514,96605.0,96604.0,0.1234]
[1732983802257,0.104514,96605.0,96604.0,0.1244]
[1732983804907,0.103513,96606.0,96605.0,0.1251]
[1732983806210,0.104513,96606.0,96605.0,0.1251]
[1732983807594,0.103513,96606.0,96605.0,0.1251]
[1732983807836,0.103511,96608.0,96606.0,0.1251]
[1732983808045,0.103512,96607.0,96605.0,0.10684521]
[1732983808257,0.15,96615.0,96605.0,0.10684521]
[1732983808470,0.15,96618.0,96608.0,0.1251]
[1732983808712,0.206986,96625.0,96605.0,0.10684521]
[1732983808713,0.206986,96625.0,96614.0,0.0765]
[1732983808929,0.206986,96625.0,96614.0,0.1251]
[1732983808930,0.103503,96615.0,96614.0,0.1251]
[1732983810308,0.104503,96615.0,96614.0,0.1251]
[1732983811015,0.001,96615.0,96614.0,0.1251]
[1732983811901,0.104503,96615.0,96614.0,0.1251]
[1732983812091,0.104503,96615.0,96614.0,0.1261]
[1732983812339,0.103503,96615.0,96614.0,0.1261]
[1732983812553,0.103503,96615.0,96614.0,0.1251]
[1732983812765,0.103503,96615.0,96614.0,0.1281]
[1732983812995,0.103503,96615.0,96614.0,0.1261]
[1732983813457,0.103503,96615.0,96614.0,0.1291]
[1732983815918,0.207001,96618.0,96614.0,0.1291]
[1732983816145,0.0008639,96624.0,96616.0,0.0486]
[1732983816576,0.103501,96617.0,96616.0,0.0486]
[1732983817236,0.103501,96617.0,96616.0,0.1253]
[1732983819168,0.103501,96617.0,96616.0,0.1273]
[1732983819384,0.103501,96617.0,96616.0,0.1283]
[1732983825286,0.103501,96617.0,96616.0,0.0516]
[1732983831752,0.1043651,96617.0,96616.0,0.0516]
[1732983840696,0.1043651,96617.0,96616.0,0.17744521]
[1732983840924,0.1043651,96617.0,96616.0,0.25454521]
[1732983841504,0.0008641,96617.0,96616.0,0.35804721]
[1732983841763,0.0008641,96617.0,96616.0,0.25454521]
[1732983842098,0.0008641,96617.0,96616.0,0.35804721]
[1732983842553,0.0008641,96617.0,96616.0,0.36804721]
[1732983843228,0.0008641,96617.0,96616.0,0.36604721]
[1732983843472,0.0008641,96617.0,96616.0,0.36504721]
[1732983843708,0.0028641,96617.0,96616.0,0.37304721]
[1732983843926,0.16478673,96633.0,96620.0,0.1224]
[1732983844149,0.103487,96631.0,96624.0,0.0453]
[1732983844371,0.103487,96631.0,96625.0,0.10284521]
[1732983844606,0.206961,96637.0,96626.0,0.0771]
[1732983844823,0.103487,96630.0,96627.0,0.10284521]
[1732983845255,0.002,96633.0,96627.0,0.10284521]
[1732983845464,0.103486,96632.0,96627.0,0.10284521]
[1732983845717,0.002,96633.0,96627.0,0.10284521]
[1732983846441,0.206952,96641.0,96628.0,0.0453]
[1732983846442,0.103483,96634.0,96628.0,0.0453]
[1732983846694,0.206952,96641.0,96629.0,0.10284521]
[1732983846908,0.103481,96636.0,96629.0,0.10284521]
[1732983847131,0.206952,96641.0,96629.0,0.10284521]
[1732983847132,0.206957,96638.0,96629.0,0.10284521]
[1732983847602,0.103481,96636.0,96629.0,0.10284521]
[1732983847820,0.206952,96641.0,96629.0,0.10284521]
[1732983848048,0.103479,96638.0,96631.0,0.0453]
[1732983848283,0.2086726,96644.0,96633.0,0.171783]
[1732983848508,0.2086726,96644.0,96634.0,0.10284521]
[1732983848690,0.103475,96642.0,96634.0,0.10284521]
[1732983848969,0.2086726,96644.0,96634.0,0.10284521]
[1732983849186,0.103479,96638.0,96634.0,0.10284521]
[1732983849405,0.00099365,96639.0,96634.0,0.10284521]
[1732983850939,0.00099365,96639.0,96634.0,0.10384521]
[1732983851171,0.00099365,96639.0,96635.0,0.103481]
[1732983851386,0.00099365,96639.0,96637.0,0.0771]
[1732983851628,0.00099365,96639.0,96638.0,0.10284521]
[1732983852073,0.10447065,96639.0,96638.0,0.10284521]
[1732983853462,0.00199365,96639.0,96638.0,0.10284521]
[1732983853670,0.10547065,96639.0,96638.0,0.10284521]
[1732983853899,0.10447065,96639.0,96638.0,0.10284521]
[1732983854111,0.10647065,96639.0,96638.0,0.10284521]
[1732983862330,0.00299365,96639.0,96638.0,0.10284521]
[1732983863035,0.00299365,96639.0,96638.0,0.23154521]
[1732983863244,0.00299365,96639.0,96638.0,0.35802321]
[1732983863459,0.00099365,96639.0,96638.0,0.35802321]
[1732983863664,0.00199365,96639.0,96638.0,0.35802321]
[1732983863887,0.00099365,96639.0,96638.0,0.35802321]
[1732983864348,0.00199365,96639.0,96638.0,0.36502321]
[1732983865451,0.00299365,96639.0,96638.0,0.36902321]
[1732983870502,0.00299365,96639.0,96638.0,0.26554521]
[1732983870730,0.10647065,96639.0,96638.0,0.11384521]
[1732983871922,0.00299365,96639.0,96638.0,0.11384521]
[1732983872390,0.10647065,96639.0,96638.0,0.11384521]
[1732983872831,0.00299365,96639.0,96638.0,0.11384521]
[1732983874625,0.00299365,96639.0,96638.0,0.16144521]
[1732983875048,0.00299365,96639.0,96638.0,0.24254521]
[1732983875253,0.00299365,96639.0,96638.0,0.36902321]
[1732983877010,0.00299365,96639.0,96638.0,0.37902321]
[1732983880838,0.00299365,96639.0,96638.0,0.37902321]
[1732983883773,0.00299365,96639.0,96638.0,0.74202321]
[1732983889233,0.00299365,96639.0,96638.0,0.75202321]
[1732983889684,0.00299365,96639.0,96638.0,0.76330009]
[1732983895723,0.208614,96671.0,96645.0,0.01]
[1732983895997,0.208614,96671.0,96646.0,0.57334521]
[1732983896219,0.206912,96659.0,96646.0,0.57334521]
[1732983896437,0.208614,96671.0,96646.0,0.57334521]
[1732983896667,0.206912,96659.0,96646.0,0.57334521]
[1732983896896,0.103469,96647.0,96646.0,0.57334521]
[1732983897568,0.206924,96654.0,96646.0,0.57334521]
[1732983897799,0.103468,96648.0,96646.0,0.57334521]
[1732983898006,0.103468,96648.0,96646.0,0.57734521]
[1732983898224,0.104469,96647.0,96646.0,0.58334521]
[1732983898471,0.206932,96650.0,96646.0,0.57734521]
[1732983898896,0.206932,96650.0,96646.0,0.58334521]
[1732983899116,0.103469,96647.0,96646.0,0.58334521]
[1732983899992,0.103469,96647.0,96646.0,0.57734521]
[1732983900489,0.104469,96647.0,96646.0,0.58334521]
[1732983900941,0.104469,96647.0,96646.0,0.57934521]
[1732983901153,0.104469,96647.0,96646.0,0.58334521]
[1732983901847,0.104469,96647.0,96646.0,0.13184521]
[1732983902084,0.001,96647.0,96646.0,0.13184521]
[1732983902336,0.001,96647.0,96646.0,1.63584521]
[1732983903012,0.104469,96647.0,96646.0,1.63584521]
[1732983903229,0.001,96647.0,96646.0,1.63584521]
[1732983903733,0.206918,96657.0,96646.0,1.63584521]
[1732983903734,0.29948424,96692.0,96646.0,1.63584521]
[1732983903966,0.103467,96649.0,96646.0,1.63584521]
[1732983904203,0.29948424,96692.0,96646.0,1.63584521]
[1732983904459,0.103467,96649.0,96646.0,1.63584521]
[1732983904678,0.103467,96649.0,96646.0,1.62984521]
[1732983904895,0.20693,96651.0,96646.0,1.63184521]
[1732983905098,0.20693,96651.0,96646.0,1.63584521]
[1732983905516,0.103466,96650.0,96646.0,1.63584521]
[1732983905736,0.0506,96658.0,96646.0,1.63584521]
[1732983906402,0.103467,96649.0,96646.0,1.63584521]
[1732983906617,0.103467,96649.0,96646.0,1.62984521]
[1732983906841,0.103467,96649.0,96646.0,1.63184521]
[1732983907070,0.001,96651.0,96646.0,1.63584521]
[1732983907287,0.206929,96652.0,96646.0,1.62984521]
[1732983907288,0.103467,96650.0,96646.0,1.62984521]
[1732983907526,0.103467,96649.0,96646.0,1.62984521]
[1732983907743,0.103469,96648.0,96646.0,1.62584521]
[1732983907959,0.103468,96648.0,96646.0,1.63184521]
[1732983908185,0.103469,96647.0,96646.0,1.63584521]
[1732983908413,0.103469,96647.0,96646.0,1.60684521]
[1732983908633,0.153069,96647.0,96646.0,0.10284521]
[1732983908859,0.103477,96639.0,96638.0,0.00012975]
[1732983909081,0.103477,96639.0,96638.0,0.10297496]
[1732983909989,0.103473,96643.0,96638.0,0.10297496]
[1732983910303,0.206945,96644.0,96639.0,0.10284521]
[1732983910540,0.001,96650.0,96639.0,0.10284521]
[1732983910541,0.103476,96640.0,96639.0,0.10284521]
[1732983911021,0.103476,96640.0,96639.0,1.60284521]
[1732983911720,0.103476,96640.0,96639.0,1.60984521]
[1732983911939,0.103476,96640.0,96639.0,1.60684521]
[1732983912413,0.104476,96640.0,96639.0,1.61184521]
[1732983912654,0.103476,96640.0,96639.0,1.60684521]
[1732983913341,0.103476,96640.0,96639.0,1.60284521]
[1732983913814,0.104476,96640.0,96639.0,1.60684521]
[1732983914054,0.231376,96640.0,96639.0,1.61184521]
[1732983914291,0.230376,96640.0,96639.0,1.60784521]
[1732983914534,0.230376,96640.0,96639.0,1.61257261]
[1732983914976,0.230376,96640.0,96639.0,1.60957261]
[1732983915436,0.230376,96640.0,96639.0,1.60457261]
[1732983915905,0.230376,96640.0,96639.0,1.60957261]
[1732983917044,0.230376,96640.0,96639.0,1.60657261]
[1732983917465,0.230376,96640.0,96639.0,1.5037274]
[1732983917759,0.230376,96640.0,96639.0,1.5057274]
[1732983917979,0.230376,96640.0,96639.0,0.0057274]
[1732983918679,0.230376,96640.0,96639.0,1.5057274]
[1732983919109,0.230376,96640.0,96639.0,0.0057274]
[1732983922982,0.230376,96640.0,96639.0,1.5057274]
[1732983923239,0.230376,96640.0,96639.0,0.0057274]
[1732983924210,0.24590519,96640.0,96639.0,0.0037274]
[1732983924476,0.24590519,96640.0,96639.0,0.0017274]
[1732983925192,0.39590519,96640.0,96639.0,0.0017274]
[1732983925412,0.4055644,96640.0,96639.0,0.0017274]
[1732983926999,0.4155644,96640.0,96639.0,0.0027274]
[1732983927414,0.4145644,96640.0,96639.0,0.0027274]
[1732983927622,0.4145644,96640.0,96639.0,0.0017274]
[1732983927623,0.4055644,96640.0,96639.0,0.0017274]
[1732983927851,0.4095644,96640.0,96639.0,0.0017274]
[1732983928056,0.4165644,96640.0,96639.0,0.0027274]
[1732983938485,0.41655014,96640.0,96639.0,0.0027274]
[1732983940253,0.42651014,96640.0,96639.0,0.0027274]
[1732983940954,0.52935535,96640.0,96639.0,0.0027274]
[1732983952533,0.34921014,96640.0,96639.0,0.0027274]
[1732983952698,0.29961014,96640.0,96639.0,0.0027274]
[1732983957856,0.04613414,96640.0,96639.0,0.0027274]
[1732983958220,0.29961014,96640.0,96639.0,0.0027274]
[1732983958423,0.28408095,96640.0,96639.0,0.0027274]
[1732983963699,0.08780013,96640.0,96639.0,0.0027274]
[1732983964189,0.08780013,96640.0,96639.0,0.1350274]
[1732983965347,0.08780013,96640.0,96639.0,0.1340274]
[1732983965857,0.08780013,96640.0,96639.0,0.1350274]
[1732983966535,0.08780013,96640.0,96639.0,0.1360274]
[1732983971376,0.10332932,96640.0,96639.0,0.0037274]
[1732983972487,0.08780013,96640.0,96639.0,0.0027274]
[1732983972963,0.10332932,96640.0,96639.0,0.0037274]
[1732983973440,0.10332932,96640.0,96639.0,0.0027274]
[1732983973690,0.10532932,96640.0,96639.0,0.0027274]
[1732983973911,0.08980013,96640.0,96639.0,0.0027274]
[1732983974158,0.08780013,96640.0,96639.0,0.0017274]
[1732983974612,0.09080013,96640.0,96639.0,0.0017274]
[1732983974831,0.08980013,96640.0,96639.0,0.0017274]
[1732983975413,0.09380013,96640.0,96639.0,0.0017274]
[1732983975498,0.09380013,96640.0,96639.0,0.0247274]
[1732983975988,0.08980013,96640.0,96639.0,0.0247274]
[1732983976222,0.08780013,96640.0,96639.0,0.0247274]
[1732983976461,0.08780013,96640.0,96639.0,0.0267274]
[1732983977137,0.08780013,96640.0,96639.0,0.0257274]
[1732983977373,0.08780013,96640.0,96639.0,0.0267274]
[1732983977823,0.08780013,96640.0,96639.0,0.0257274]
[1732983978037,0.08780013,96640.0,96639.0,0.0267274]
[1732983978487,0.08780013,96640.0,96639.0,0.0257274]
[1732983979621,0.19470406,96643.0,96639.0,0.0037274]
[1732983979848,0.103476,96640.0,96639.0,0.0037274]
[1732983980545,0.103476,96640.0,96639.0,0.0027274]
[1732983980779,0.103476,96640.0,96639.0,0.0037274]
[1732983981444,0.103476,96640.0,96639.0,0.0027274]
[1732983983047,0.103476,96640.0,96639.0,0.0037274]
[1732983986148,0.1043399,96640.0,96639.0,0.0037274]
[1732983989246,0.17019278,96642.0,96639.0,0.0037274]
[1732983989468,0.103476,96640.0,96639.0,0.0037274]
[1732983990379,0.103476,96640.0,96639.0,0.0027274]
[1732983990649,0.103476,96640.0,96639.0,0.0037274]
[1732983991117,0.103476,96640.0,96639.0,0.0027274]
[1732983991565,0.103476,96640.0,96639.0,0.0037274]
[1732983999722,0.11588179,96642.0,96639.0,0.0037274]
[1732983999935,0.103475,96641.0,96640.0,0.0466]
[1732984000393,0.103476,96640.0,96639.0,0.0037274]
[1732984000622,0.103476,96640.0,96639.0,0.0027274]
[1732984001082,0.103476,96640.0,96639.0,0.0037274]
[1732984001546,0.103476,96640.0,96639.0,0.0017274]
[1732984002017,0.103476,96640.0,96639.0,0.0027274]
[1732984002477,0.103476,96640.0,96639.0,0.0037274]
[1732984004168,0.233476,96640.0,96639.0,0.0037274]
[1732984004386,0.39900519,96640.0,96639.0,0.0037274]
[1732984004640,0.40868591,96640.0,96639.0,0.0037274]
[1732984004861,0.40868591,96640.0,96639.0,0.0027274]
[1732984005073,0.40868499,96640.0,96639.0,0.0017274]
[1732984005294,0.40968499,96640.0,96639.0,0.0017274]
[1732984005516,0.41168499,96640.0,96639.0,0.0017274]
[1732984005733,0.40968499,96640.0,96639.0,0.0017274]
[1732984006071,0.41568499,96640.0,96639.0,0.0027274]
[1732984006672,0.41468499,96640.0,96639.0,0.0027274]
[1732984007105,0.41768499,96640.0,96639.0,0.0027274]
[1732984008486,0.40800519,96640.0,96639.0,0.0027274]
[1732984009563,0.4176761,96640.0,96639.0,0.0027274]
[1732984011558,0.55274873,96640.0,96639.0,0.0027274]
[1732984011766,0.55928003,96640.0,96639.0,0.0027274]
[1732984012008,0.54960912,96640.0,96639.0,0.0027274]
[1732984012223,0.55927548,96640.0,96639.0,0.0027274]
[1732984013348,0.54960912,96640.0,96639.0,0.0027274]
[1732984015796,0.54960912,96640.0,96639.0,4e-07]
[1732984016019,0.54960912,96640.0,96633.0,7.5e-07]
[1732984016020,0.253483,96634.0,96633.0,7.5e-07]
[1732984016235,0.51855563,96634.0,96633.0,7.5e-07]
[1732984016452,0.53408482,96634.0,96633.0,7.5e-07]
[1732984017544,0.54373678,96634.0,96633.0,7.5e-07]
[1732984017755,0.55273678,96634.0,96633.0,0.00100075]
[1732984017959,0.55273678,96634.0,96633.0,7.5e-07]
[1732984019139,0.56173678,96634.0,96633.0,7.5e-07]
[1732984022201,0.56173678,96634.0,96633.0,0.00172855]
[1732984022900,0.56173678,96634.0,96633.0,5.5e-07]
[1732984023339,0.52950936,96634.0,96633.0,5.5e-07]
[1732984024039,0.53950936,96634.0,96633.0,5.5e-07]
[1732984025208,0.53949111,96634.0,96633.0,5.5e-07]
[1732984026110,0.57159314,96634.0,96633.0,5.5e-07]
[1732984026350,0.58159314,96634.0,96633.0,5.5e-07]
[1732984027521,0.60054578,96634.0,96633.0,5.5e-07]
[1732984027735,0.62354578,96634.0,96633.0,5.5e-07]
[1732984027959,0.63086089,96634.0,96633.0,5.5e-07]
[1732984034550,0.63172489,96634.0,96633.0,5.5e-07]
[1732984035684,0.63173253,96634.0,96633.0,5.5e-07]
[1732984038413,0.63173675,96634.0,96633.0,5.5e-07]
[1732984042771,0.62209118,96634.0,96633.0,5.5e-07]
[1732984043001,0.6317474,96634.0,96633.0,5.5e-07]
[1732984046406,0.25351,96609.0,96608.0,0.0815807]
[1732984046834,0.25351,96609.0,96608.0,0.0806]
[1732984047545,0.25356966,96609.0,96608.0,0.0806]
[1732984047757,0.25356966,96609.0,96608.0,0.1267]
[1732984049161,0.25756966,96609.0,96608.0,0.1267]
[1732984049409,0.25956966,96609.0,96608.0,0.1267]
[1732984056371,0.29179386,96609.0,96608.0,0.1267]
[1732984059515,0.29179386,96609.0,96608.0,0.128428]
[1732984061349,0.29179386,96609.0,96608.0,0.001728]
[1732984062503,0.30147153,96609.0,96608.0,0.001728]
[1732984071047,0.30147153,96609.0,96608.0,0.049528]
[1732984071308,0.30147153,96609.0,96608.0,0.128028]
[1732984072251,0.01573733,96609.0,96608.0,0.128028]
[1732984072469,0.10956966,96609.0,96608.0,0.128028]
[1732984073350,0.10356966,96609.0,96608.0,0.128028]
[1732984073802,0.10356966,96609.0,96608.0,0.130028]
[1732984074691,0.10356966,96609.0,96608.0,0.132028]
[1732984077021,0.10356966,96609.0,96608.0,0.130028]
[1732984077935,0.10356966,96609.0,96608.0,0.128028]
[1732984078173,0.10356966,96609.0,96608.0,0.129028]
[1732984078644,0.10356966,96609.0,96608.0,0.128028]
[1732984079115,0.10356966,96609.0,96608.0,0.129028]
[1732984079569,0.10356966,96609.0,96608.0,0.128028]
[1732984080263,0.10356966,96609.0,96608.0,0.130028]
[1732984080943,0.10356966,96609.0,96608.0,0.128028]
[1732984081196,0.10356966,96609.0,96608.0,0.129028]
[1732984081664,0.10356966,96609.0,96608.0,0.23087321]
[1732984081950,0.10356966,96609.0,96608.0,0.23287321]
[1732984082424,5.966e-05,96609.0,96608.0,0.23287321]
[1732984082893,5.966e-05,96609.0,96608.0,0.23487321]
[1732984085170,5.966e-05,96609.0,96608.0,0.33838421]
[1732984087991,5.966e-05,96609.0,96608.0,1.33838421]
[1732984090786,5.966e-05,96609.0,96608.0,1.23487321]
[1732984095706,0.10356966,96609.0,96608.0,1.23487321]
[1732984099073,0.10088566,96609.0,96608.0,1.23487321]
[1732984116002,0.10088566,96609.0,96608.0,1.005728]
[1732984117775,0.10088566,96609.0,96608.0,1.003728]
[1732984118536,0.10088566,96609.0,96608.0,1.001728]
[1732984118777,0.10088566,96609.0,96608.0,1.002728]
[1732984119236,0.10174956,96609.0,96608.0,1.001728]
[1732984119453,0.10174956,96609.0,96608.0,1.002728]
[1732984119918,0.10174956,96609.0,96608.0,1.003728]
[1732984120156,0.10174956,96609.0,96608.0,1.001728]
[1732984120387,0.10174956,96609.0,96608.0,1.002728]
[1732984128574,0.22994956,96609.0,96608.0,1.002728]
[1732984129042,0.22994956,96609.0,96608.0,1.001728]
[1732984129490,0.22994956,96609.0,96608.0,1.002728]
[1732984129940,0.37994956,96609.0,96608.0,1.001728]
[1732984130162,0.39362449,96609.0,96608.0,1.001728]
[1732984130821,0.39361042,96609.0,96608.0,1.001728]
[1732984131279,0.39561042,96609.0,96608.0,1.001728]
[1732984139885,0.31531042,96609.0,96608.0,1.001728]
[1732984140116,0.30564956,96609.0,96608.0,1.001728]
[1732984141264,0.25774956,96609.0,96608.0,1.001728]
[1732984141930,0.25774956,96609.0,96608.0,0.001728]
[1732984142596,0.33424956,96609.0,96608.0,0.001728]
[1732984143001,0.34391042,96609.0,96608.0,0.001728]
[1732984150334,0.33424956,96609.0,96608.0,0.001728]
[1732984157696,0.25774956,96609.0,96608.0,0.001728]
[1732984161695,0.28999097,96609.0,96608.0,0.001728]
[1732984163420,0.13999097,96609.0,96608.0,0.001728]
[1732984163611,0.10774956,96609.0,96608.0,0.001728]
[1732984164558,0.10774956,96609.0,96608.0,0.081828]
[1732984165091,0.10574956,96609.0,96608.0,0.081828]
[1732984165517,0.10174956,96609.0,96608.0,0.081828]
[1732984165926,0.10474956,96609.0,96608.0,0.081828]
[1732984166131,0.10274956,96609.0,96608.0,0.081828]
[1732984166381,0.10674956,96609.0,96608.0,0.081828]
[1732984167223,0.10174956,96609.0,96608.0,0.081828]
[1732984167668,0.10274956,96609.0,96608.0,0.081828]
[1732984168097,0.10174956,96609.0,96608.0,0.081828]
[1732984168781,0.10474956,96609.0,96608.0,0.081828]
[1732984168991,0.10174956,96609.0,96608.0,0.081828]
[1732984169206,0.10274956,96609.0,96608.0,0.081828]
[1732984172027,0.10174956,96609.0,96608.0,0.081828]
[1732984172197,0.10174956,96609.0,96608.0,0.001728]
[1732984173472,0.10274956,96609.0,96608.0,0.001728]
[1732984183250,0.10274956,96609.0,96608.0,0.049328]
[1732984183706,0.10274956,96609.0,96608.0,0.129028]
[1732984186596,0.10274956,96609.0,96608.0,0.130028]
[1732984187068,0.10274956,96609.0,96608.0,0.129028]
[1732984187551,0.10274956,96609.0,96608.0,0.130028]
[1732984187775,0.10174956,96609.0,96608.0,0.130028]
[1732984188918,0.10174956,96609.0,96608.0,0.050328]
[1732984189141,0.10174956,96609.0,96608.0,0.002728]
[1732984198623,0.10174956,96609.0,96608.0,0.001728]
[1732984198848,0.10474956,96609.0,96608.0,0.001728]
[1732984199059,0.10574956,96609.0,96608.0,0.001728]
[1732984200779,0.11543215,96609.0,96608.0,0.001728]
[1732984201642,0.10574956,96609.0,96608.0,0.001728]
[1732984202085,0.1154303,96609.0,96608.0,0.001728]
[1732984202300,0.29769819,96609.0,96608.0,0.001728]
[1732984202519,0.2654303,96609.0,96608.0,0.001728]
[1732984203389,0.2976882,96609.0,96608.0,0.001728]
[1732984204025,0.2654303,96609.0,96608.0,0.001728]
[1732984205160,0.26542288,96609.0,96608.0,0.001728]
[1732984206700,0.30104956,96609.0,96608.0,0.001728]
[1732984207158,0.31072288,96609.0,96608.0,0.001728]
[1732984207369,0.30104956,96609.0,96608.0,0.001728]
[1732984207793,0.31072288,96609.0,96608.0,0.001728]
[1732984208015,0.30104956,96609.0,96608.0,0.001728]
[1732984210360,0.25574956,96609.0,96608.0,0.001728]
[1732984214515,0.10574956,96609.0,96608.0,0.001728]
[1732984220432,0.10574956,96609.0,96608.0,0.001728]
[1732984228416,0.25574956,96609.0,96608.0,0.001728]